[Event "CAMPEONATO NACIONAL ABSOLUTO DE CHILE 2019"]
[Site "Torre ENTEL, Chile"]
[Date "2019.02.26"]
[Round "9.5"]
[White "Abarca Gonzalez, Nicolas"]
[Black "Henriquez Villagra, Cristobal"]
[Result "1/2-1/2"]
[TimeControl "90 minutos mas 30 segundos incremento por movida"]
[BlackTitle "GM"]
[WhiteFideId "3409422"]
[BlackFideId "3409350"]
[WhiteElo "2418"]
[BlackElo "2508"]

1. e4 {[%clk 01:24:18]} {[%emt 00:06:41]} c6 {[%clk 01:30:55]} {[%emt
00:00:06]} 2. d4 {[%clk 01:24:33]} {[%emt 00:00:14]} d5 {[%clk 01:31:21]}
{[%emt 00:00:05]} 3. Nc3 {[%clk 01:25:00]} {[%emt 00:00:03]} dxe4 {[%clk
01:31:43]} {[%emt 00:00:08]} 4. Nxe4 {[%clk 01:25:26]} {[%emt 00:00:04]} Nd7
{[%clk 01:31:59]} {[%emt 00:00:14]} 5. Nf3 {[%clk 01:21:58]} {[%emt 00:03:57]}
Ngf6 {[%clk 01:32:10]} {[%emt 00:00:19]} 6. Nxf6+ {[%clk 01:21:56]} {[%emt
00:00:32]} Nxf6 {[%clk 01:32:31]} {[%emt 00:00:09]} 7. Bc4 {[%clk 01:22:07]}
{[%emt 00:00:19]} e6 {[%clk 01:27:10]} {[%emt 00:05:51]} 8. O-O {[%clk
01:22:08]} {[%emt 00:00:29]} Bd6 {[%clk 01:26:50]} {[%emt 00:00:51]} 9. Bg5
{[%clk 01:22:01]} {[%emt 00:00:37]} Qc7 {[%clk 01:21:26]} {[%emt 00:05:54]} 10.
Re1 {[%clk 01:21:22]} {[%emt 00:01:08]} b5 {[%clk 01:09:41]} {[%emt 00:12:15]}
11. Bb3 {[%clk 01:20:00]} {[%emt 00:01:53]} O-O {[%clk 01:07:59]} {[%emt
00:02:12]} 12. c3 {[%clk 01:15:24]} {[%emt 00:05:06]} Nd5 {[%clk 01:08:07]}
{[%emt 00:00:21]} 13. c4 {[%clk 01:12:04]} {[%emt 00:03:50]} bxc4 {[%clk
01:06:26]} {[%emt 00:02:11]} 14. Bxc4 {[%clk 01:12:33]} {[%emt 00:00:01]} Rb8
{[%clk 01:04:38]} {[%emt 00:02:18]} 15. b3 {[%clk 01:12:29]} {[%emt 00:00:34]}
h6 {[%clk 01:03:26]} {[%emt 00:01:42]} 16. Bd2 {[%clk 01:10:55]} {[%emt
00:02:04]} Bb7 {[%clk 00:57:30]} {[%emt 00:06:26]} 17. Rc1 {[%clk 01:05:54]}
{[%emt 00:05:31]} Qe7 {[%clk 00:52:53]} {[%emt 00:05:07]} 18. Ne5 {[%clk
01:05:12]} {[%emt 00:01:12]} Rbd8 {[%clk 00:45:43]} {[%emt 00:07:39]} 19. Qg4
{[%clk 00:56:06]} {[%emt 00:09:35]} Nf6 {[%clk 00:44:15]} {[%emt 00:01:58]} 20.
Qh4 {[%clk 00:54:44]} {[%emt 00:01:52]} Rfe8 {[%clk 00:29:03]} {[%emt
00:15:42]} 21. Re2 {[%clk 00:46:54]} {[%emt 00:08:21]} c5 {[%clk 00:24:18]}
{[%emt 00:05:15]} 22. Rce1 {[%clk 00:06:31]} {[%emt 00:40:53]} Nd5 {[%clk
00:18:39]} {[%emt 00:06:09]} 23. Qg4 {[%clk 00:05:56]} {[%emt 00:01:05]} Nf6
{[%clk 00:09:14]} {[%emt 00:09:54]} 24. Qh4 {[%clk 00:05:19]} {[%emt 00:01:07]}
Nd5 {[%clk 00:07:43]} {[%emt 00:02:01]} 25. Qg4 {[%clk 00:04:59]} {[%emt
00:00:50]} Qf6 {[%clk 00:07:14]} {[%emt 00:00:59]} 26. Bb5 {[%clk 00:04:22]}
{[%emt 00:01:07]} Re7 {[%clk 00:07:40]} {[%emt 00:00:04]} 27. dxc5 {[%clk
00:04:17]} {[%emt 00:00:35]} Bxc5 {[%clk 00:07:48]} {[%emt 00:00:22]} 28. Nc6
{[%clk 00:02:33]} {[%emt 00:02:15]} Bxc6 {[%clk 00:08:11]} {[%emt 00:00:07]} 29.
Bxc6 {[%clk 00:03:02]} {[%emt 00:00:01]} Nc3 {[%clk 00:07:29]} {[%emt
00:01:12]} 30. Bxc3 {[%clk 00:03:24]} {[%emt 00:00:08]} Qxc3 {[%clk 00:07:58]}
{[%emt 00:00:01]} 31. Qc4 {[%clk 00:00:34]} {[%emt 00:03:20]} Qxc4 {[%clk
00:08:04]} {[%emt 00:00:25]} 32. bxc4 {[%clk 00:01:03]} {[%emt 00:00:01]} Rc7
{[%clk 00:08:24]} {[%emt 00:00:09]} 33. Bb5 {[%clk 00:01:14]} {[%emt 00:00:19]}
Rd6 {[%clk 00:08:36]} {[%emt 00:00:17]} 34. g3 {[%clk 00:01:25]} {[%emt
00:00:21]} Rd3 {[%clk 00:06:28]} {[%emt 00:02:38]} 35. Ba4 {[%clk 00:00:35]}
{[%emt 00:01:20]} Kf8 {[%clk 00:04:52]} {[%emt 00:02:06]} 36. Rd1 {[%clk
00:00:48]} {[%emt 00:00:17]} Rxd1+ {[%clk 00:03:00]} {[%emt 00:02:23]} 37. Bxd1
{[%clk 00:01:16]} {[%emt 00:00:01]} Rd7 {[%clk 00:03:25]} {[%emt 00:00:05]} 38.
Bb3 {[%clk 00:01:06]} {[%emt 00:00:40]} Ke7 {[%clk 00:03:23]} {[%emt 00:00:32]}
39. h4 {[%clk 00:01:04]} {[%emt 00:00:32]} Rd3 {[%clk 00:03:50]} {[%emt
00:00:04]} 40. Kg2 {[%clk 00:01:31]} {[%emt 00:00:03]} Kd6 {[%clk 00:04:08]}
{[%emt 00:00:12]} 41. Re1 {[%clk 00:01:36]} {[%emt 00:00:25]} Bd4 {[%clk
00:02:56]} {[%emt 00:01:42]} 42. Rd1 {[%clk 00:01:52]} {[%emt 00:00:14]} Rxd1
{[%clk 00:03:24]} {[%emt 00:00:02]} 43. Bxd1 {[%clk 00:02:19]} {[%emt
00:00:03]} Kc5 {[%clk 00:03:51]} {[%emt 00:00:04]} 44. Ba4 {[%clk 00:02:40]}
{[%emt 00:00:10]} Kb4 {[%clk 00:02:32]} {[%emt 00:01:49]} 45. Be8 {[%clk
00:02:31]} {[%emt 00:00:38]} f6 {[%clk 00:00:59]} {[%emt 00:02:03]} 46. a4
{[%clk 00:02:58]} {[%emt 00:00:04]} Kxc4 {[%clk 00:01:23]} {[%emt 00:00:06]} 47.
f4 {[%clk 00:02:38]} {[%emt 00:00:49]} Kb4 {[%clk 00:00:59]} {[%emt 00:00:54]}
48. h5 {[%clk 00:02:54]} {[%emt 00:00:14]} f5 {[%clk 00:00:49]} {[%emt
00:00:40]} 49. Kf3 {[%clk 00:03:12]} {[%emt 00:00:12]} a5 {[%clk 00:01:00]}
{[%emt 00:00:19]} 50. Bd7 {[%clk 00:03:30]} {[%emt 00:00:12]} Bb6 {[%clk
00:01:16]} {[%emt 00:00:13]} 51. Be8 {[%clk 00:01:00]} {[%emt 00:03:01]} Kc5
{[%clk 00:01:42]} {[%emt 00:00:04]} 52. Bb5 {[%clk 00:01:25]} {[%emt 00:00:05]}
Kd6 {[%clk 00:01:47]} {[%emt 00:00:24]} 53. Be8 {[%clk 00:01:51]} {[%emt
00:00:04]} Ke7 {[%clk 00:02:07]} {[%emt 00:00:10]} 54. Bg6 {[%clk 00:01:56]}
{[%emt 00:00:25]} Bc7 {[%clk 00:02:23]} {[%emt 00:00:15]} 55. Bh7 {[%clk
00:02:21]} {[%emt 00:00:04]} g5 {[%clk 00:02:35]} {[%emt 00:00:18]} 56. Bg6
{[%clk 00:02:13]} {[%emt 00:00:38]} Bd6 {[%clk 00:00:50]} {[%emt 00:02:15]} 57.
Ke3 {[%clk 00:02:05]} {[%emt 00:00:38]} Ba3 {[%clk 00:01:04]} {[%emt 00:00:17]}
58. Kf3 {[%clk 00:02:21]} {[%emt 00:00:14]} Bc1 {[%clk 00:01:28]} {[%emt
00:00:05]} 59. Bh7 {[%clk 00:02:08]} {[%emt 00:00:43]} Kf6 {[%clk 00:00:57]}
{[%emt 00:01:01]} 60. Bg8 {[%clk 00:02:30]} {[%emt 00:00:08]} Bd2 {[%clk
00:01:14]} {[%emt 00:00:13]} 61. Bh7 {[%clk 00:02:27]} {[%emt 00:00:33]} Bc1
{[%clk 00:00:56]} {[%emt 00:00:49]} 62. Bg8 {[%clk 00:02:52]} {[%emt 00:00:05]}
g4+ {[%clk 00:01:18]} {[%emt 00:00:08]} 63. Kf2 {[%clk 00:03:04]} {[%emt
00:00:18]} Bb2 {[%clk 00:01:28]} {[%emt 00:00:20]} 64. Kf1 {[%clk 00:01:53]}
{[%emt 00:01:41]} Ba3 {[%clk 00:01:54]} {[%emt 00:00:04]} 65. Kf2 {[%clk
00:02:06]} {[%emt 00:00:17]} Be7 {[%clk 00:02:20]} {[%emt 00:00:04]} 66. Kf1
{[%clk 00:02:03]} {[%emt 00:00:34]} Bc5 {[%clk 00:02:44]} {[%emt 00:00:06]} 67.
Ke2 {[%clk 00:01:39]} {[%emt 00:00:54]} Bb6 {[%clk 00:02:18]} {[%emt 00:00:56]}
68. Kf1 {[%clk 00:02:04]} {[%emt 00:00:05]} Bc7 {[%clk 00:02:24]} {[%emt
00:00:23]} 69. Kf2 {[%clk 00:02:18]} {[%emt 00:00:16]} e5 {[%clk 00:01:44]}
{[%emt 00:01:10]} 70. fxe5+ {[%clk 00:01:39]} {[%emt 00:01:09]} Bxe5 {[%clk
00:02:13]} {[%emt 00:00:01]} 71. Bh7 {[%clk 00:01:10]} {[%emt 00:00:58]} Kg5
{[%clk 00:02:38]} {[%emt 00:00:05]} 72. Bg6 {[%clk 00:01:40]} {[%emt 00:00:01]}
Bd6 {[%clk 00:02:58]} {[%emt 00:00:10]} 73. Kg2 {[%clk 00:01:57]} {[%emt
00:00:12]} Bc7 {[%clk 00:02:01]} {[%emt 00:01:27]} 74. Kf2 {[%clk 00:02:18]}
{[%emt 00:00:09]} Bxg3+ {[%clk 00:01:28]} {[%emt 00:01:03]} 75. Kxg3 {[%clk
00:02:47]} f4+ {[%clk 00:01:54]} {[%emt 00:00:04]} 76. Kf2 {[%clk 00:02:47]}
{[%emt 00:00:30]} Kh4 {[%clk 00:02:19]} {[%emt 00:00:05]} 77. Kg2 {[%clk
00:03:10]} {[%emt 00:00:07]} f3+ {[%clk 00:01:55]} {[%emt 00:00:54]} 78. Kf2
{[%clk 00:03:31]} {[%emt 00:00:08]} Kh3 {[%clk 00:01:33]} {[%emt 00:00:52]} 79.
Bf5 {[%clk 00:03:00]} {[%emt 00:01:02]} Kh4 {[%clk 00:01:57]} {[%emt 00:00:06]}
80. Be6 {[%clk 00:03:00]} {[%emt 00:00:30]} Kh3 {[%clk 00:02:19]} {[%emt
00:00:08]} 81. Bf5 {[%clk 00:00:43]} {[%emt 00:02:48]} Kh4 {[%clk 00:02:44]}
{[%emt 00:00:05]} 82. Bd7 {[%clk 00:01:12]} {[%emt 00:00:02]} Kh3 {[%clk
00:03:10]} {[%emt 00:00:04]} 83. Be6 {[%clk 00:00:36]} {[%emt 00:01:05]} Kh4
{[%clk 00:03:36]} {[%emt 00:00:05]} 84. Bf5 {[%clk 00:00:59]} {[%emt 00:00:06]}
Kg5 {[%clk 00:03:28]} {[%emt 00:00:37]} 85. Bd7 {[%clk 00:01:04]} {[%emt
00:00:24]} Kf4 {[%clk 00:03:55]} {[%emt 00:00:04]} 86. Bb5 {[%clk 00:01:08]}
{[%emt 00:00:26]} g3+ {[%clk 00:03:28]} {[%emt 00:00:58]} 87. Kg1 {[%clk
00:01:03]} {[%emt 00:00:38]} Kg4 {[%clk 00:03:00]} {[%emt 00:00:55]} 88. Bc6
{[%clk 00:01:21]} {[%emt 00:00:12]} f2+ {[%clk 00:02:00]} {[%emt 00:01:29]} 89.
Kg2 {[%clk 00:01:45]} {[%emt 00:00:06]} Kxh5 {[%clk 00:02:30]} {[%emt
00:00:01]} 90. Bd7 {[%clk 00:01:14]} {[%emt 00:01:01]} Kg5 {[%clk 00:02:49]}
{[%emt 00:00:10]} 91. Bh3 {[%clk 00:01:16]} {[%emt 00:00:28]} Kf4 {[%clk
00:03:06]} {[%emt 00:00:12]} 92. Be6 {[%clk 00:00:59]} {[%emt 00:00:47]} h5
{[%clk 00:01:11]} {[%emt 00:02:26]} 93. Bc4 {[%clk 00:01:04]} {[%emt 00:00:25]}
h4 {[%clk 00:01:36]} {[%emt 00:00:04]} 94. Bf1 {[%clk 00:01:16]} {[%emt
00:00:18]} Ke3 {[%clk 00:01:30]} {[%emt 00:00:37]} 95. Kh3 {[%clk 00:01:17]}
{[%emt 00:00:28]} Kd2 {[%clk 00:00:58]} {[%emt 00:01:02]} 96. Kxh4 {[%clk
00:01:30]} {[%emt 00:00:18]} Ke1 {[%clk 00:01:23]} {[%emt 00:00:04]} 97. Bg2
{[%clk 00:01:35]} {[%emt 00:00:24]} f1=Q {[%clk 00:01:28]} {[%emt 00:00:25]} 98.
Bxf1 {[%clk 00:01:59]} {[%emt 00:00:06]} Kxf1 {[%clk 00:01:56]} {[%emt
00:00:02]} 99. Kxg3 {[%clk 00:02:23]} {[%emt 00:00:06]} Ke2 {[%clk 00:02:23]}
{[%emt 00:00:03]} 100. Kg2 {[%clk 00:02:27]} {[%emt 00:00:26]} Kd3 {[%clk
00:02:49]} {[%emt 00:00:04]} 1/2-1/2

[Event "CAMPEONATO NACIONAL ABSOLUTO DE CHILE 2019"]
[Site "Torre ENTEL, Chile"]
[Date "2019.02.26"]
[Round "9.6"]
[White "Lopez Silva, Hugo"]
[Black "Salinas Herrera, Pablo"]
[Result "0-1"]
[TimeControl "90 minutos mas 30 segundos incremento por movida"]
[BlackTitle "IM"]
[WhiteFideId "3403874"]
[BlackFideId "3407128"]
[WhiteElo "2413"]
[BlackElo "2477"]

1. e4 {[%clk 01:27:08]} {[%emt 00:03:50]} e5 {[%clk 01:30:56]} {[%emt
00:00:05]} 2. Nf3 {[%clk 01:26:19]} {[%emt 00:01:17]} Nc6 {[%clk 01:31:21]}
{[%emt 00:00:06]} 3. Bc4 {[%clk 01:26:44]} {[%emt 00:00:05]} Nf6 {[%clk
01:31:47]} {[%emt 00:00:04]} 4. Ng5 {[%clk 01:25:23]} {[%emt 00:01:50]} d5
{[%clk 01:32:13]} {[%emt 00:00:05]} 5. exd5 {[%clk 01:25:50]} {[%emt 00:00:04]}
Na5 {[%clk 01:32:40]} {[%emt 00:00:03]} 6. Bb5+ {[%clk 01:26:15]} {[%emt
00:00:05]} Bd7 {[%clk 01:33:07]} {[%emt 00:00:02]} 7. Qe2 {[%clk 01:26:38]}
{[%emt 00:00:07]} Be7 {[%clk 01:32:42]} {[%emt 00:00:55]} 8. Nf3 {[%clk
01:27:01]} {[%emt 00:00:07]} O-O {[%clk 01:32:32]} {[%emt 00:00:40]} 9. Nxe5
{[%clk 00:48:58]} {[%emt 00:38:32]} Bxb5 {[%clk 01:30:23]} {[%emt 00:02:40]} 10.
Qxb5 {[%clk 00:49:07]} {[%emt 00:00:21]} Bd6 {[%clk 01:30:49]} {[%emt
00:00:04]} 11. d4 {[%clk 00:45:00]} {[%emt 00:04:36]} c5 {[%clk 01:31:14]}
{[%emt 00:00:05]} 12. dxc6 {[%clk 00:38:53]} {[%emt 00:06:37]} Nxc6 {[%clk
01:11:48]} {[%emt 00:19:56]} 13. c3 {[%clk 00:17:55]} {[%emt 00:21:27]} Nxe5
{[%clk 00:46:56]} {[%emt 00:25:22]} 14. dxe5 {[%clk 00:18:13]} {[%emt
00:00:13]} Re8 {[%clk 00:45:47]} {[%emt 00:01:39]} 15. O-O {[%clk 00:15:06]}
{[%emt 00:03:42]} Rxe5 {[%clk 00:46:14]} 16. Qxb7 {[%clk 00:15:16]} {[%emt
00:00:19]} Rb8 {[%clk 00:38:05]} {[%emt 00:08:38]} 17. Qf3 {[%clk 00:15:44]}
{[%emt 00:00:02]} Qd7 {[%clk 00:38:21]} {[%emt 00:00:14]} 18. Nd2 {[%clk
00:11:19]} {[%emt 00:04:55]} Rf5 {[%clk 00:38:26]} {[%emt 00:00:25]} 19. Qh3
{[%clk 00:11:47]} {[%emt 00:00:01]} g5 {[%clk 00:29:57]} {[%emt 00:08:59]} 20.
g3 {[%clk 00:09:30]} {[%emt 00:02:47]} Re8 {[%clk 00:27:22]} {[%emt 00:03:05]}
21. Nc4 {[%clk 00:05:56]} {[%emt 00:04:04]} g4 {[%clk 00:18:15]} {[%emt
00:09:37]} 22. Qg2 {[%clk 00:03:11]} {[%emt 00:03:16]} Rf3 {[%clk 00:17:37]}
{[%emt 00:01:08]} 23. Be3 {[%clk 00:02:41]} {[%emt 00:01:00]} Bf8 {[%clk
00:16:41]} {[%emt 00:01:26]} 24. Rad1 {[%clk 00:02:24]} {[%emt 00:00:46]} Qf5
{[%clk 00:15:36]} {[%emt 00:01:34]} 25. Bd4 {[%clk 00:01:49]} {[%emt 00:01:05]}
Ne4 {[%clk 00:15:31]} {[%emt 00:00:36]} 26. Rfe1 {[%clk 00:01:27]} {[%emt
00:00:52]} Re6 {[%clk 00:15:57]} {[%emt 00:00:03]} 27. Ne3 {[%emt 00:01:26]}
Qh5 {[%clk 00:15:59]} {[%emt 00:00:27]} 28. Nf1 {[%clk 00:00:32]} {[%emt
00:00:30]} Ng5 {[%clk 00:15:16]} {[%emt 00:01:13]} 29. Rxe6 {[%clk 00:00:37]}
{[%emt 00:00:26]} fxe6 {[%clk 00:14:02]} {[%emt 00:01:45]} 30. Be3 {[%clk
00:00:38]} {[%emt 00:00:29]} Nh3+ {[%emt 00:00:12]} 31. Kh1 Qf5 {[%clk
00:14:27]} {[%emt 00:00:22]} 32. Re1 {[%clk 00:00:32]} {[%emt 00:01:06]} Bc5
{[%clk 00:08:44]} {[%emt 00:06:13]} 33. Re2 {[%clk 00:01:01]} {[%emt 00:00:01]}
Bxe3 {[%clk 00:04:12]} {[%emt 00:05:02]} 34. Nxe3 {[%clk 00:01:11]} {[%emt
00:00:20]} Qe4 {[%clk 00:03:23]} {[%emt 00:01:19]} 35. Rd2 {[%clk 00:00:42]}
{[%emt 00:01:00]} Rxe3 {[%emt 00:00:31]} 36. Qxe4 {[%clk 00:00:35]} {[%emt
00:00:34]} Rxe4 {[%clk 00:03:51]} {[%emt 00:00:04]} 37. Kg2 {[%clk 00:01:04]}
Re1 {[%clk 00:04:14]} {[%emt 00:00:06]} 0-1

[ePGN "0.1;DGT LiveChess/2.2.3"]

[Event "CAMPEONATO NACIONAL ABSOLUTO DE CHILE 2019"]
[Site "Torre ENTEL, Chile"]
[Date "2019.02.27"]
[Round "10.2"]
[White "Henriquez Villagra, Cristobal"]
[Black "Lopez Silva, Hugo"]
[Result "1-0"]
[TimeControl "90 minutos mas 30 segundos incremento por movida"]
[WhiteTitle "GM"]
[WhiteFideId "3409350"]
[BlackFideId "3403874"]
[WhiteElo "2508"]
[BlackElo "2413"]

1. e4 {[%clk 01:30:57]} {[%emt 00:00:01]} e5 {[%clk 01:22:52]} {[%emt
00:08:07]} 2. Bc4 {[%clk 01:31:16]} {[%emt 00:00:13]} Nf6 {[%clk 01:23:06]}
{[%emt 00:00:15]} 3. Nc3 {[%clk 01:31:41]} {[%emt 00:00:05]} Nc6 {[%clk
01:23:22]} {[%emt 00:00:14]} 4. d3 {[%clk 01:30:10]} {[%emt 00:02:01]} Na5
{[%clk 01:23:37]} {[%emt 00:00:15]} 5. Nge2 {[%clk 01:28:53]} {[%emt 00:01:47]}
Bc5 {[%clk 01:20:05]} {[%emt 00:04:02]} 6. O-O {[%clk 01:24:41]} {[%emt
00:04:41]} Nxc4 {[%clk 01:19:07]} {[%emt 00:01:28]} 7. dxc4 {[%clk 01:25:06]}
{[%emt 00:00:05]} d6 {[%clk 01:19:34]} {[%emt 00:00:03]} 8. Qd3 {[%clk
01:23:08]} {[%emt 00:02:28]} Be6 {[%clk 01:14:47]} {[%emt 00:05:17]} 9. b3
{[%clk 01:06:00]} {[%emt 00:17:38]} O-O {[%clk 01:05:40]} {[%emt 00:09:36]} 10.
Ng3 {[%clk 01:02:05]} {[%emt 00:04:25]} Nd7 {[%clk 00:45:54]} {[%emt 00:20:16]}
11. Rb1 {[%clk 00:56:00]} {[%emt 00:06:36]} Qh4 {[%clk 00:38:49]} {[%emt
00:07:34]} 12. Be3 {[%clk 00:42:27]} {[%emt 00:14:04]} g6 {[%clk 00:29:29]}
{[%emt 00:09:50]} 13. Nb5 {[%clk 00:41:12]} {[%emt 00:01:46]} Rac8 {[%clk
00:29:14]} {[%emt 00:00:45]} 14. Bxc5 {[%emt 00:10:29]} Nxc5 {[%clk 00:28:12]}
{[%emt 00:00:49]} 15. Qe3 {[%clk 00:32:23]} {[%emt 00:00:02]} a6 {[%clk
00:26:04]} {[%emt 00:02:38]} 16. Nc3 {[%clk 00:32:37]} {[%emt 00:00:16]} f5
{[%clk 00:25:35]} {[%emt 00:00:59]} 17. exf5 {[%clk 00:32:05]} {[%emt
00:01:01]} Bxf5 {[%clk 00:25:44]} {[%emt 00:00:22]} 18. Nxf5 {[%clk 00:28:39]}
{[%emt 00:03:56]} Rxf5 {[%clk 00:25:56]} {[%emt 00:00:17]} 19. Qg3 {[%clk
00:27:00]} {[%emt 00:02:09]} Qf6 {[%clk 00:20:48]} {[%emt 00:05:38]} 20. Nd5
{[%clk 00:23:05]} {[%emt 00:04:26]} Qf7 {[%clk 00:17:42]} {[%emt 00:03:37]} 21.
Qh4 {[%clk 00:23:23]} {[%emt 00:00:11]} Re8 {[%clk 00:16:40]} {[%emt 00:01:32]}
22. f4 {[%clk 00:22:42]} {[%emt 00:01:12]} exf4 {[%clk 00:15:09]} {[%emt
00:02:01]} 23. Rbe1 {[%clk 00:19:05]} {[%emt 00:04:06]} Rxe1 {[%clk 00:08:20]}
{[%emt 00:07:20]} 24. Rxe1 {[%clk 00:19:31]} {[%emt 00:00:04]} Re5 {[%clk
00:08:47]} {[%emt 00:00:02]} 25. Rxe5 {[%clk 00:15:23]} {[%emt 00:04:39]} dxe5
{[%clk 00:09:16]} {[%emt 00:00:02]} 26. Qg5 {[%clk 00:15:48]} {[%emt 00:00:04]}
c6 {[%clk 00:03:59]} {[%emt 00:05:47]} 27. Nf6+ {[%clk 00:13:21]} {[%emt
00:02:56]} Kg7 {[%clk 00:04:28]} 28. Nh5+ {[%clk 00:13:38]} {[%emt 00:00:14]}
Kg8 {[%clk 00:02:40]} {[%emt 00:02:18]} 29. Qxe5 {[%clk 00:12:23]} {[%emt
00:01:45]} Nd7 {[%clk 00:01:30]} {[%emt 00:01:41]} 30. Qg5 {[%clk 00:12:44]}
{[%emt 00:00:09]} Qe8 {[%clk 00:00:31]} {[%emt 00:01:29]} 31. Kf1 {[%clk
00:12:10]} {[%emt 00:01:04]} f3 {[%clk 00:00:31]} {[%emt 00:00:30]} 32. gxf3
{[%clk 00:12:04]} {[%emt 00:00:36]} Kh8 {[%clk 00:00:31]} {[%emt 00:00:30]} 33.
Nf4 {[%clk 00:11:44]} {[%emt 00:00:49]} Qf8 {[%clk 00:00:37]} {[%emt 00:00:24]}
34. Kf2 {[%clk 00:10:43]} {[%emt 00:01:32]} Qd6 {[%clk 00:00:55]} {[%emt
00:00:11]} 35. h4 {[%clk 00:08:52]} {[%emt 00:02:21]} Ne5 {[%clk 00:00:35]}
{[%emt 00:00:51]} 36. Ne2 {[%clk 00:05:44]} {[%emt 00:03:38]} Kg7 {[%clk
00:00:38]} {[%emt 00:00:27]} 37. Ng3 {[%clk 00:05:07]} {[%emt 00:01:07]} Qd4+
{[%clk 00:00:33]} {[%emt 00:00:34]} 38. Kg2 {[%clk 00:05:24]} {[%emt 00:00:13]}
Kf7 {[%clk 00:00:33]} {[%emt 00:00:30]} 39. Ne4 {[%clk 00:05:23]} {[%emt
00:00:31]} Qb2 {[%clk 00:00:33]} {[%emt 00:00:30]} 40. Qf6+ {[%clk 00:04:28]}
{[%emt 00:01:25]} Ke8 {[%clk 00:00:57]} {[%emt 00:00:07]} 41. Qh8+ {[%clk
00:03:44]} {[%emt 00:01:14]} Kd7 {[%clk 00:01:05]} {[%emt 00:00:22]} 42. Qxh7+
{[%clk 00:04:09]} {[%emt 00:00:04]} Kd8 {[%clk 00:01:34]} {[%emt 00:00:01]} 43.
Qg8+ {[%clk 00:03:46]} {[%emt 00:00:53]} Kc7 {[%clk 00:02:02]} {[%emt
00:00:03]} 44. Qg7+ {[%clk 00:04:11]} {[%emt 00:00:05]} Kd8 {[%clk 00:01:53]}
{[%emt 00:00:39]} 45. Qf8+ {[%clk 00:03:36]} {[%emt 00:01:04]} Kc7 {[%clk
00:02:18]} {[%emt 00:00:05]} 46. Qd6+ {[%clk 00:04:02]} {[%emt 00:00:04]} Kc8
{[%clk 00:02:40]} {[%emt 00:00:08]} 47. Kg3 {[%clk 00:02:37]} {[%emt 00:01:55]}
Qa1 {[%clk 00:03:09]} {[%emt 00:00:01]} 48. Kg2 {[%clk 00:02:27]} {[%emt
00:00:39]} Qb2 {[%clk 00:03:05]} {[%emt 00:00:34]} 49. Qd2 {[%clk 00:02:32]}
{[%emt 00:00:26]} Qxa2 {[%clk 00:02:19]} {[%emt 00:01:17]} 50. f4 {[%clk
00:02:31]} {[%emt 00:00:30]} Ng4 {[%clk 00:02:05]} {[%emt 00:00:44]} 51. Kf3
{[%clk 00:01:22]} {[%emt 00:01:39]} Nh6 {[%clk 00:02:14]} {[%emt 00:00:22]} 52.
Nc5 {[%clk 00:01:46]} {[%emt 00:00:06]} Kc7 {[%clk 00:02:07]} {[%emt 00:00:37]}
53. Ne6+ {[%clk 00:01:50]} {[%emt 00:00:25]} Kb8 {[%clk 00:01:41]} {[%emt
00:00:56]} 54. Qd6+ {[%clk 00:00:52]} {[%emt 00:01:29]} Ka7 {[%clk 00:02:03]}
{[%emt 00:00:08]} 55. Qd4+ {[%clk 00:01:04]} {[%emt 00:00:18]} Ka8 {[%clk
00:02:32]} {[%emt 00:00:01]} 56. Nc7+ {[%clk 00:01:26]} {[%emt 00:00:07]} Kb8
{[%clk 00:03:01]} {[%emt 00:00:01]} 57. Qd8+ {[%clk 00:01:53]} {[%emt
00:00:03]} 1-0